bitfinex-derivatives/quotes_ETHF0:USTF0_20251204
["timestamp","ask_amount","ask_price","bid_price","bid_amount"]
[1764818640228,4.3222,3214.0,3213.9,0.15555]
[1764818641929,4.3222,3214.0,3213.9,0.72375]
[1764818642132,2.69,3214.0,3213.9,1.29195]
[1764818642431,0.00791666,3214.3,3214.2,1.1364]
[1764818642632,1.66031666,3214.3,3214.2,1.1364]
[1764818642828,3.29251666,3214.3,3214.2,1.1364]
[1764818644338,0.00791666,3214.3,3214.2,2.67616365]
[1764818644531,0.00791666,3214.3,3214.2,4.90436612]
[1764818644836,3.40191666,3214.3,3214.2,1.29194]
[1764818645334,3.40191666,3214.3,3214.2,3.52014247]
[1764818645526,0.00791666,3214.3,3214.2,4.90436612]
[1764818646838,4.2643,3215.0,3214.4,0.4466]
[1764818647035,7.6583,3215.0,3214.9,0.4466]
[1764818647335,3.394,3214.8,3214.7,0.37881]
[1764818647732,3.394,3214.8,3214.7,0.15551]
[1764818648036,3.39776372,3214.8,3214.7,0.15790108]
[1764818648641,3.39776372,3214.8,3214.7,0.38120108]
[1764818648841,3.39776372,3214.8,3214.7,0.15790108]
[1764818649440,3.39776372,3214.8,3214.7,0.38120108]
[1764818649840,3.39776372,3214.8,3214.7,0.60450108]
[1764818651433,1.65916372,3214.8,3214.7,0.60450108]
[1764818651937,0.00376372,3214.8,3214.7,0.60450108]
[1764818652740,1.65916372,3214.8,3214.7,0.60450108]
[1764818653043,3.39776372,3214.8,3214.7,0.15790108]
[1764818653339,3.39776372,3214.8,3214.7,0.38120108]
[1764818653736,3.39776372,3214.8,3214.7,0.15790108]
[1764818654435,3.394,3214.3,3214.2,2.23345806]
[1764818654748,3.394,3214.2,3214.1,15.651]
[1764818655244,3.394,3214.2,3214.1,13.9192]
[1764818655441,3.394,3214.2,3214.1,13.923172]
[1764818655640,3.394,3214.2,3214.1,12.475522]
[1764818658136,3.394,3214.2,3214.1,14.078722]
[1764818658449,3.394,3214.2,3214.1,12.475522]
[1764818660140,3.394,3214.2,3214.1,14.078722]
[1764818660348,1.6554,3214.2,3214.1,17.19474565]
[1764818660538,3.394,3214.2,3214.1,15.810522]
[1764818662038,3.394,3214.2,3214.1,14.078722]
[1764818662241,3.394,3214.2,3214.1,12.475522]
[1764818663051,44.194,3214.2,3214.1,12.475522]
[1764818664753,44.194,3214.2,3214.1,14.078722]
[1764818665049,44.194,3214.2,3214.1,12.475522]
[1764818665549,47.4018,3214.2,3214.1,12.475522]
[1764818666049,47.4018,3214.2,3214.1,15.810522]
[1764818666644,6.6018,3214.2,3214.1,15.810522]
[1764818667452,6.6018,3214.2,3214.1,12.475522]
[1764818668454,6.6018,3214.2,3214.1,14.078722]
[1764818669456,6.6018,3214.2,3214.1,15.810522]
[1764818669755,4.8632,3214.2,3214.1,15.810522]
[1764818669955,6.6018,3214.2,3214.1,15.810522]
[1764818670152,6.6018,3214.2,3214.1,14.078722]
[1764818670456,6.6018,3214.2,3214.1,12.475522]
[1764818671254,6.6018,3214.2,3214.1,12.319972]
[1764818673457,7.98602365,3214.2,3214.1,12.319972]
[1764818677462,3.1719,3213.6,3213.5,0.14418114]
[1764818677760,6.3797,3213.6,3213.5,0.14418114]
[1764818678349,6.3797,3213.6,3213.5,0.14636157]
[1764818679265,6.3797,3213.6,3213.5,1.72176157]
[1764818680164,6.3797,3213.6,3213.5,0.14636157]
[1764818680363,6.3797,3213.6,3213.5,0.00218043]
[1764818680667,4.0814,3213.0,3212.9,13.2802]
[1764818681569,4.0814,3213.0,3212.9,13.28255689]
[1764818682166,1.588,3213.0,3212.9,13.28255689]
[1764818682761,6.3797,3213.2,3213.1,3.1232]
[1764818682961,47.1797,3213.2,3213.1,3.1232]
[1764818683660,6.3797,3213.2,3213.1,3.1232]
[1764818684058,6.3797,3213.2,3213.1,1.5754]
[1764818684664,6.2059,3213.2,3213.1,3.0529]
[1764818685566,3.2078,3213.2,3213.1,3.0529]
[1764818685771,6.2059,3213.2,3213.1,1.534]
[1764818685963,6.2059,3213.2,3213.1,3.0529]
[1764818687065,4.6742,3213.2,3213.1,3.0529]
[1764818688458,3.2078,3213.2,3213.1,3.0529]
[1764818688660,3.2078,3213.2,3213.1,3.2085]
[1764818688866,0.00466809,3213.3,3213.2,3.20849]
[1764818689170,0.00466809,3213.3,3213.2,4.59271365]
[1764818690169,0.00466809,3213.3,3213.2,6.82617171]
[1764818691565,1.47106809,3213.3,3213.2,6.82617171]
[1764818691766,0.00466809,3213.3,3213.2,5.44194806]
[1764818695275,0.00466809,3213.3,3213.2,6.82617171]
[1764818695962,1.47106809,3213.3,3213.2,2.38904806]
[1764818696171,4.1129,3215.5,3214.7,0.15552]
[1764818696365,0.9051,3216.0,3215.8,1.3146]
[1764818696366,3.2078,3215.9,3215.8,1.3146]
[1764818696562,0.9051,3216.0,3215.9,1.47006]
[1764818696768,1.4664,3216.4,3216.3,0.6573]
[1764818696974,4.1129,3216.5,3216.2,1.38422365]
[1764818697162,0.9051,3216.5,3216.2,1.38422365]
[1764818697369,0.9051,3217.0,3216.3,4.11905662]
[1764818697567,3.2078,3217.4,3216.3,4.11905662]
[1764818697568,4.6742,3217.4,3216.9,1.38422365]
[1764818697764,13.2201,3218.5,3217.3,1.38422365]
[1764818697765,4.1129,3218.0,3217.3,1.38422365]
[1764818697970,40.8,3217.9,3217.3,1.38422365]
[1764818698269,4.1129,3218.0,3217.4,5.62799986]
[1764818698467,4.12142455,3218.0,3217.5,3.2078]
[1764818698663,44.92142455,3218.0,3217.5,3.2078]
[1764818699468,2.9981,3217.6,3217.5,3.2078]
[1764818699676,0.9051,3217.5,3217.4,7.01]
[1764818699869,2.3715,3217.0,3216.9,3.2078]
[1764818700070,2.3715,3217.0,3216.9,13.4438]
[1764818700071,0.9051,3217.0,3216.9,13.4438]
[1764818700667,0.9051,3217.0,3216.9,3.2078]
[1764818700877,3.9032,3217.0,3216.9,7.1578]
[1764818701076,3.9032,3217.0,3216.6,0.15542]
[1764818701077,2.9981,3216.7,3216.6,0.15542]
[1764818701271,1.4664,3216.4,3216.3,8.512]
[1764818701477,2.9981,3216.4,3216.3,8.512]
[1764818701871,1.4664,3216.4,3216.3,8.512]
[1764818702074,0.9051,3216.5,3216.2,0.00221768]
[1764818702075,2.9981,3216.3,3216.2,0.00221768]
[1764818702474,2.9981,3216.3,3216.0,0.00466809]
[1764818702475,2.9981,3216.1,3216.0,0.00466809]
[1764818703379,2.9981,3216.1,3216.0,0.00791876]
[1764818703679,43.7981,3216.1,3216.0,0.00791876]
[1764818708490,3.2514,3215.2,3215.1,3.2078]
[1764818708681,3.2514,3215.2,3215.1,6.7918]
[1764818709188,3.2514,3215.2,3215.1,7.1237]
[1764818709490,3.25415088,3215.2,3215.1,7.12645475]
[1764818710283,3.25415088,3215.2,3215.1,3.54245475]
[1764818710489,3.25415088,3215.2,3215.1,3.21055475]
[1764818710689,1.69395088,3215.2,3215.1,3.87435475]
[1764818710889,3.25415088,3215.2,3215.1,3.54245475]
[1764818711484,1.69395088,3215.2,3215.1,3.87435475]
[1764818711689,0.00275088,3215.2,3215.1,3.87435475]
[1764818712685,3.25415088,3215.2,3215.1,0.00275475]
[1764818718296,3.25415088,3215.2,3215.1,0.33465475]
[1764818719492,3.25415088,3215.2,3215.1,0.00275475]
[1764818719799,0.00275088,3215.2,3215.1,6.06896912]
[1764818719993,1.0204,3215.5,3215.4,0.6638]
[1764818720998,2.71458982,3215.5,3215.4,0.6638]
[1764818721302,4.27478982,3215.5,3215.4,7.68138]
[1764818721492,4.27478982,3215.5,3215.4,8.01328]
[1764818721996,2.71458982,3215.5,3215.4,8.01328]
[1764818722395,4.27478982,3215.5,3215.4,8.01328]
[1764818723896,4.27478982,3215.5,3215.4,0.48738]
[1764818724094,4.27478982,3215.5,3215.4,0.15548]
[1764818724593,4.27478982,3215.5,3213.7,2.23113163]
[1764818724594,1.0204,3214.0,3213.7,2.23113163]
[1764818724796,4.2718,3214.0,3213.5,3.2078]
[1764818724998,1.0204,3214.0,3213.9,3.8716]
[1764818725196,4.2718,3214.5,3214.4,0.3319]
[1764818725398,4.2718,3214.5,3214.1,0.15555]
[1764818725600,4.2718,3214.5,3214.1,0.15829119]
[1764818725799,1.6912,3214.2,3214.1,0.82209119]
[1764818726389,4.2718,3214.5,3214.4,0.3319]
[1764818726596,1.6912,3214.3,3214.2,0.81934]
[1764818726998,3.2514,3214.3,3214.2,0.81934]
[1764818727200,3.2514,3214.3,3214.2,0.15554]
[1764818729998,3.2514,3214.3,3214.2,0.48744]
[1764818730198,1.6912,3214.3,3214.2,0.81934]
[1764818730399,1.0204,3214.5,3214.4,0.6638]
[1764818730600,0.00466809,3214.6,3214.5,0.81933]
[1764818730803,0.00466809,3214.6,3214.5,2.85844437]
[1764818737010,1.52346809,3214.6,3214.5,2.85844437]
[1764818739313,0.00466809,3214.6,3214.5,2.85844437]
[1764818740510,1.52346809,3214.6,3214.5,2.85844437]
[1764818741605,0.00466809,3214.6,3214.5,5.089576]
[1764818742014,1e-08,3214.6,3214.5,5.089576]
[1764818742216,1e-08,3214.6,3214.5,2.85844437]
[1764818745119,1e-08,3214.6,3214.5,6.06624437]
[1764818750420,1.0204,3216.0,3214.5,6.06624437]
[1764818750421,3.65788982,3215.5,3215.3,0.15549]
[1764818750620,3.65788982,3215.5,3215.4,12.31]
[1764818751015,3.65788982,3215.5,3215.4,12.46548]
[1764818751215,2.23628982,3215.5,3215.4,12.46548]
[1764818751914,0.87518982,3215.5,3215.4,12.46548]
[1764818754217,3.65788982,3215.5,3215.4,14.69421434]
[1764818755011,3.65788982,3215.5,3215.4,2.38421434]
[1764818755222,3.65788982,3215.5,3215.4,0.15548]
[1764818758018,3.6549,3215.0,3214.9,15.0388]
[1764818762124,3.6549,3215.0,3214.9,3.2078]
[1764818762420,2.7827,3214.7,3214.6,0.15552]
[1764818762821,2.7827,3214.4,3214.3,13.12173434]
[1764818763019,2.7827,3214.4,3214.3,10.893]
[1764818763726,1.3611,3214.4,3214.3,10.893]
[1764818765727,2.7935,3214.4,3214.3,10.893]
[1764818766128,1.3611,3214.4,3214.3,10.893]
[1764818768833,2.7935,3214.4,3214.3,10.893]
[1764818770934,2.7919,3214.3,3214.2,0.00466809]
[1764818771136,3.6641,3214.5,3214.2,0.00466809]
[1764818771330,0.8722,3214.5,3214.2,0.00466809]
[1764818771531,0.8722,3214.5,3214.4,0.15553]
[1764818773037,2.2317,3214.5,3214.4,0.15553]
[1764818773240,3.6641,3214.5,3214.4,0.15553]
[1764818773632,3.6641,3214.5,3214.4,12.46553]
[1764818774237,3.6641,3214.5,3214.4,0.15553]
[1764818774539,2.7919,3214.3,3214.2,0.00466809]
[1764818775939,3.6641,3214.5,3214.2,0.00466809]
[1764818776239,2.7919,3214.3,3214.2,0.00466809]
[1764818776437,0.8722,3214.5,3214.2,0.16020809]
[1764818776739,3.6641,3214.5,3214.2,0.16020809]
[1764818777146,2.7919,3214.3,3214.2,0.16020809]
[1764818780431,1.3595,3214.3,3214.2,0.16020809]
[1764818780633,3.6641,3214.5,3214.2,0.16020809]
[1764818781233,1.3595,3214.3,3214.2,0.16020809]
[1764818783449,2.2317,3214.5,3214.4,0.15553]
[1764818784241,3.2078,3214.8,3214.7,0.15552]
[1764818784242,2.7919,3214.8,3214.7,0.15552]
[1764818784948,3.6641,3215.0,3214.8,0.15551]
[1764818785142,3.6641,3215.0,3214.8,5.5939059]
[1764818785735,2.6715,3214.9,3214.8,5.5939059]
[1764818786949,1.3595,3214.9,3214.8,5.5939059]
[1764818787645,2.6715,3214.9,3214.8,5.5939059]
[1764818788942,1.3595,3214.9,3214.8,5.5939059]
[1764818789245,1.3595,3214.9,3214.8,3.36331]
[1764818789446,2.1292,3215.0,3214.8,5.59601886]
[1764818789642,0.8722,3215.0,3214.9,12.46651]
[1764818789947,0.00466809,3215.8,3215.4,0.15548]
[1764818790140,0.00466809,3215.8,3215.4,5.74019863]
[1764818792341,2.13218982,3215.5,3215.4,5.74019863]
[1764818792737,3.44418982,3215.5,3215.4,15.67328]
[1764818792946,3.44418982,3215.5,3215.4,17.90127634]
[1764818793448,3.44418982,3215.5,3215.4,15.67328]
[1764818794244,3.44418982,3215.5,3215.4,3.36328]
[1764818794451,3.44418982,3215.5,3215.4,15.67228]
[1764818795751,0.87518982,3215.5,3215.4,15.67228]
[1764818795947,0.00298982,3215.5,3215.4,17.90027634]
[1764818796153,0.76548982,3215.5,3215.4,17.90027634]
[1764818796753,1.0204,3216.0,3215.9,0.15546]
[1764818797051,1.0204,3216.0,3215.9,3.36326]
[1764818797052,3.5019,3216.0,3215.9,3.36326]
[1764818797251,3.5019,3216.0,3215.9,15.48026]
[1764818797855,3.5057199,3216.0,3215.9,15.48026]
[1764818800549,3.5057199,3216.0,3215.9,3.36326]
[1764818800948,3.5057199,3216.0,3215.9,12.10226]
[1764818802953,3.5057199,3216.0,3215.9,8.89446]
[1764818804954,3.5057199,3216.0,3215.9,0.15546]
[1764818805158,2.3867,3215.7,3215.6,12.306]
[1764818806458,2.2577,3215.6,3215.5,3.2078]
[1764818807757,2.9721,3215.5,3215.4,12.306]
[1764818810260,1.859,3215.5,3215.4,12.306]
[1764818810551,2.9721,3215.5,3215.4,12.306]
[1764818813359,2.2577,3215.4,3215.3,3.36329]
[1764818813559,2.2577,3215.4,3215.3,15.66929]
[1764818814362,1.1446,3215.4,3215.3,15.66929]
[1764818815357,2.2577,3215.4,3215.3,15.66929]
[1764818816654,1.1446,3215.4,3215.3,15.66929]
[1764818817360,1.859,3215.5,3215.3,15.66929]
[1764818817762,2.9721,3215.5,3215.3,15.66929]
[1764818818367,1.859,3215.5,3215.3,15.66929]
[1764818818567,2.9721,3215.5,3215.3,15.66929]
[1764818818768,2.2577,3215.4,3215.3,15.66929]
[1764818819754,1.1446,3215.4,3215.3,15.66929]
[1764818820564,2.2577,3215.4,3215.3,15.66929]
[1764818822268,2.2577,3215.4,3215.3,12.46149]
[1764818822664,0.7144,3215.5,3215.3,12.46149]
[1764818822968,1.1446,3215.4,3215.3,12.46149]
[1764818823875,2.2577,3215.4,3215.3,12.46149]
[1764818824166,1.8068,3215.5,3215.3,12.46149]
[1764818824371,3.011,3215.5,3215.3,12.46149]
[1764818824571,1.0924,3215.4,3215.3,12.46149]
[1764818825067,2.2966,3215.4,3215.3,12.46149]
[1764818826361,1.0924,3215.4,3215.3,13.87948268]
[1764818826674,2.2966,3215.4,3215.3,13.87948268]
[1764818827369,1.0924,3215.4,3215.3,13.87948268]
[1764818828476,0.7144,3215.5,3215.3,13.87948268]
[1764818829278,1.8068,3215.5,3215.3,13.87948268]
[1764818829674,3.011,3215.5,3215.3,13.87948268]
[1764818830370,3.011,3215.5,3215.3,16.10513577]
[1764818830669,0.7144,3215.5,3215.3,16.10513577]
[1764818830867,1.8068,3215.5,3215.3,16.10513577]
[1764818832274,3.011,3215.5,3215.3,16.10513577]
[1764818832975,2.2966,3215.4,3215.3,16.10513577]
[1764818834374,2.2966,3215.4,3215.3,13.87948268]
[1764818835777,1.8068,3215.5,3215.3,13.87948268]
[1764818835980,1.8068,3215.5,3215.4,2.23709135]
[1764818836366,2.2966,3215.2,3215.1,2.78833022]
[1764818836567,3.2078,3215.2,3215.0,2.23816241]
[1764818836768,2.9767,3215.0,3214.9,9.08916241]
[1764818837671,2.9767,3215.0,3214.9,10.50715509]
[1764818838378,2.9767,3215.0,3214.9,8.26899268]
[1764818838879,1.7725,3215.0,3214.9,8.26899268]
[1764818839069,0.6801,3215.0,3214.9,8.42450268]
[1764818839681,0.6801,3215.0,3214.9,11.63230268]
[1764818839870,0.6801,3215.0,3214.9,13.87046509]
[1764818840877,0.6801,3215.0,3214.9,15.28845777]
[1764818841079,0.7144,3215.5,3214.9,12.89478536]
[1764818841279,0.7144,3215.5,3215.4,1.41799268]
[1764818841677,3.2078,3215.6,3215.4,1.41799268]
[1764818841975,3.3208199,3216.0,3215.4,4.62579268]
[1764818842180,3.3208199,3216.0,3215.9,1.41799268]
[1764818842572,3.3208199,3216.0,3215.8,9.284]
[1764818842573,2.2966,3215.9,3215.8,9.284]
[1764818845883,1.0924,3215.9,3215.8,9.284]
[1764818846085,2.2966,3215.9,3215.8,9.284]
[1764818846290,1.0924,3215.9,3215.8,9.284]
[1764818847687,2.2966,3215.9,3215.8,9.284]
[1764818850688,2.2966,3215.7,3215.6,1.57346268]
[1764818851096,2.2966,3215.7,3215.6,8.25446268]
[1764818852590,2.2966,3215.7,3215.6,1.57346268]
[1764818853097,2.2966,3215.7,3215.6,0.15547]
[1764818853496,5.5044,3215.7,3215.6,0.15547]
[1764818856500,4.1856,3215.7,3215.6,1.57346268]
[1764818856692,5.2376,3215.7,3215.6,1.57346268]
[1764818865503,2.0298,3215.7,3215.6,1.57346268]
[1764818866100,5.2376,3215.7,3215.6,1.57346268]
[1764818866301,5.2376,3215.7,3215.6,0.15547]
[1764818866505,2.0103,3215.3,3215.2,2.23454763]
[1764818866705,2.0103,3214.9,3214.8,2.39005763]
[1764818866903,5.2181,3214.9,3214.8,0.15551]
[1764818875510,46.0181,3214.9,3214.8,0.15551]
[1764818878915,2.0103,3214.4,3214.3,12.304]
[1764818879213,2.0103,3214.4,3213.0,1.41799268]
[1764818879214,1.6132,3213.5,3213.4,2.53797268]
[1764818879509,4.821,3214.5,3214.4,0.9644]
[1764818879813,5.8068,3214.5,3214.4,1.90019268]
[1764818880109,5.80938676,3214.5,3214.4,1.90252959]
[1764818880313,5.80938676,3214.5,3214.4,1.42032959]
[1764818880516,2.01496809,3214.7,3214.6,0.9644]
[1764818881516,2.01868876,3214.7,3214.6,0.9644]
[1764818884610,0.00838876,3214.7,3214.6,0.9644]
[1764818884816,0.6349,3215.0,3214.9,1.196]
[1764818885117,0.6349,3215.0,3214.9,2.57940158]
[1764818885415,5.2629,3215.3,3215.2,1.196]
[1764818885817,5.26669339,3215.3,3215.2,0.598]
[1764818886113,1.6627,3215.0,3214.9,2.57940158]
[1764818887122,0.6349,3215.0,3214.9,2.57940158]
[1764818889016,3.2078,3215.1,3215.0,1.3515]
[1764818890419,4.2356,3215.1,3215.0,1.3515]
[1764818892418,5.2629,3215.1,3215.0,1.3515]
[1764818892621,2.0551,3215.1,3215.0,1.3515]
[1764818892923,1.0278,3215.1,3215.0,1.3515]
[1764818893122,1.03159339,3215.3,3215.2,1.196]
[1764818893322,0.00379339,3215.3,3215.2,2.57940158]
[1764818893517,0.00379339,3215.3,3215.2,4.96459355]
[1764818893815,0.00379339,3215.3,3215.2,2.73489158]
[1764818895313,0.00379339,3215.3,3215.2,5.94269158]
[1764818900534,0.00379339,3215.3,3215.2,8.1713692]
[1764818901030,0.00466809,3215.6,3215.5,1.35148]
[1764818901231,1.03246809,3215.6,3215.5,12.25688158]
[1764818901527,2.05976809,3215.6,3215.5,2.13688158]
[1764818901721,2.0551,3215.1,3215.0,1.38340158]
[1764818901925,2.05888923,3215.1,3215.0,1.38340158]
[1764818902120,2.05888923,3215.1,3215.0,1.98140158]
[1764818902727,2.0551,3214.9,3214.8,0.15551]
[1764818903032,2.69,3214.5,3214.4,11.59173849]
[1764818904633,1.6627,3214.5,3214.4,12.78773849]
[1764818904927,2.69,3214.5,3214.4,12.78773849]
[1764818905325,1.6627,3214.5,3214.4,12.78773849]
[1764818910235,0.6349,3214.5,3214.4,12.78773849]
[1764818910436,0.6349,3214.5,3214.4,12.94326849]
[1764818911832,5.8978,3215.0,3214.9,1.196]
[1764818912037,5.8978,3215.0,3214.9,2.57940158]
[1764818912239,3.8427,3215.0,3214.9,2.57940158]
[1764818913231,4.8705,3215.0,3214.9,2.57940158]
[1764818913736,0.00378923,3215.1,3215.0,0.1555]
[1764818914040,0.00378923,3215.1,3215.0,0.7447]
[1764818915041,0.93378923,3215.1,3215.0,0.7447]
[1764818915340,0.00378923,3215.1,3215.0,0.7447]
[1764818917141,0.93378923,3215.1,3215.0,0.7447]
[1764818917336,0.93378923,3215.1,3215.0,11.6477]
[1764818918248,0.00378923,3215.1,3215.0,11.6477]
[1764818920145,0.93378923,3215.1,3215.0,11.6477]
[1764818920339,1.87518923,3215.1,3215.0,11.6477]
[1764818920740,0.93378923,3215.1,3215.0,11.6477]
[1764818922347,0.00378923,3215.1,3215.0,11.6477]
[1764818923851,1.86528923,3215.1,3215.0,11.6477]
[1764818924350,0.92388923,3215.1,3215.0,11.6477]
[1764818926247,0.00378923,3215.1,3215.0,11.6477]
[1764818928651,0.92388923,3215.1,3215.0,13.03110158]
[1764818929157,1.86528923,3215.1,3215.0,12.73650158]
[1764818929453,1.86528923,3215.1,3215.0,12.97360158]
[1764818929754,1.86528923,3215.1,3215.0,12.73650158]
[1764818930855,0.92388923,3215.1,3215.0,12.97360158]
[1764818931158,1.86528923,3215.1,3215.0,12.97360158]
[1764818932063,1.86528923,3215.1,3215.0,12.73650158]
[1764818933365,1.86528923,3215.1,3215.0,12.44190158]
[1764818933661,1.86528923,3215.1,3215.0,13.83990158]
[1764818934256,1.86528923,3215.1,3215.0,12.4565]
[1764818937162,5.07308923,3215.1,3215.0,12.4565]
[1764818942566,5.07308923,3215.1,3215.0,12.6936]
[1764818942870,5.07308923,3215.1,3215.0,14.31410158]
[1764818943372,3.21158923,3215.1,3215.0,14.31410158]
[1764818944370,3.21158923,3215.1,3215.0,14.34904768]
[1764818944572,0.00378923,3215.1,3215.0,14.34904768]
[1764818945774,0.00378923,3215.1,3215.0,15.76739536]
[1764818948378,0.00378923,3215.1,3215.0,14.34904768]
[1764818948679,1.75198923,3215.1,3215.0,14.34904768]
[1764818948977,1.75198923,3215.1,3215.0,14.13034768]
[1764818949178,1.75198923,3215.1,3215.0,12.4749]
[1764818949480,1.75198923,3215.1,3215.0,13.91164768]
[1764818949979,0.83738923,3215.1,3215.0,13.91164768]
[1764818950781,0.00378923,3215.1,3215.0,13.91164768]
[1764818952079,0.6349,3215.5,3215.4,0.0368]
[1764818952268,0.6349,3215.5,3215.4,1.45514768]
[1764818952467,1.4685,3215.5,3215.4,1.45514768]
[1764818952682,2.3831,3215.5,3215.4,1.45514768]
[1764818952871,2.3831,3215.5,3215.4,1.61062768]
[1764818953072,2.38705176,3215.5,3215.4,1.61062768]
[1764818953279,2.38705176,3215.5,3215.4,1.59222768]
[1764818954183,2.38705176,3215.5,3215.4,1.61062768]
[1764818954378,1.47245176,3215.5,3215.4,1.61062768]
[1764818954583,2.38705176,3215.5,3215.4,1.61062768]
[1764818954781,2.38705176,3215.5,3215.4,1.59222768]
[1764818955081,2.38705176,3215.5,3215.4,1.57382768]
[1764818955475,2.38705176,3215.5,3215.4,0.15548]
[1764818956281,1.7482,3215.1,3214.8,15.3377891]
[1764818956483,1.7482,3214.9,3214.8,1.57385768]
[1764818956780,1.7482,3214.9,3214.8,1.59225768]
[1764818957186,1.7482,3214.9,3214.8,1.57385768]
[1764818957585,1.7482,3214.9,3214.8,0.15551]
[1764818960485,1.7482,3214.6,3214.5,13.71834768]
[1764818960687,2.2612,3214.5,3214.4,0.00233691]
[1764818963981,2.2612,3214.5,3214.4,0.02073691]
[1764818963982,1.3466,3214.5,3214.4,0.02073691]
[1764818964189,2.2612,3214.5,3214.4,0.02073691]
[1764818964493,2.2612,3214.5,3214.4,0.00233691]
[1764818966591,1.7482,3214.2,3214.1,0.00466809]
[1764818966794,4.956,3214.2,3214.1,0.00466809]
[1764818967588,4.956,3214.2,3214.1,0.00782135]
[1764818968394,1.7482,3213.7,3213.6,1.43904768]
[1764818969191,3.2078,3213.8,3213.5,1.43904768]
[1764818969399,1.7482,3213.6,3213.5,1.46344552]
[1764818972290,0.8336,3213.6,3213.5,1.46344552]
[1764818972494,44.0078,3213.8,3213.7,0.0207]
[1764818972789,3.2078,3213.8,3213.7,0.0207]
[1764818973098,4.956,3213.8,3213.7,0.0207]
[1764818973290,1.7482,3213.6,3213.5,1.46344552]
[1764818973992,4.8142,3213.8,3213.5,1.42204552]
[1764818977198,1.6064,3213.8,3213.5,1.42204552]
[1764818977796,0.75,3213.6,3213.5,1.42204552]
[1764818978196,1.6064,3213.6,3213.5,1.42204552]
[1764818980603,1.6064,3213.6,3213.5,0.00369784]
[1764818982097,3.2078,3213.9,3213.5,0.15927784]
[1764818982298,4.6384,3213.9,3213.8,1.41834768]
[1764818982701,1.4306,3213.6,3213.5,0.15927784]
[1764818983007,1.4306,3213.6,3213.5,1.57762552]
[1764818983601,0.7006,3213.6,3213.5,1.57762552]
[1764818983806,44.0078,3213.9,3213.5,1.57762552]
[1764818984006,44.0078,3213.9,3213.8,1.41834768]
[1764818985911,0.7006,3213.9,3213.8,1.41834768]
[1764818986111,1.2136,3214.5,3213.8,5.07213678]
[1764818986410,1.9436,3214.5,3214.4,1.41834768]
[1764818987909,1.2136,3214.5,3214.4,1.41834768]
[1764818989219,1.2136,3214.5,3214.4,1.57387768]
[1764818989618,1.9436,3214.5,3214.4,1.57387768]
[1764818991107,1.2136,3214.5,3214.4,1.57387768]
[1764818995021,0.513,3214.5,3214.4,11.54587768]
[1764818996417,1.2136,3214.5,3214.4,11.54587768]
[1764818997716,0.513,3214.5,3214.4,11.54587768]
[1764818998023,1.2136,3214.5,3214.4,11.54587768]
[1764818998717,0.513,3214.5,3214.4,11.54587768]
[1764818998916,1.2136,3214.5,3214.4,11.54587768]
[1764818999316,0.513,3214.5,3214.4,11.54587768]
[1764819000421,0.00466809,3214.8,3214.4,17.7549176]
[1764819000622,0.00466809,3214.8,3214.7,4.62614768]
[1764819002122,0.00466809,3214.8,3214.7,4.78166768]
[1764819003522,0.70526809,3214.8,3214.7,4.78166768]
[1764819003718,1.47786809,3214.8,3214.7,12.35666768]
[1764819004726,1.47786809,3214.8,3214.7,4.78166768]
[1764819005331,1.47786809,3214.8,3214.7,0.15552]
[1764819005927,1.5283,3214.4,3214.3,3.2078]
[1764819006129,1.5283,3214.2,3214.1,1.41834768]
[1764819006430,1.5283,3214.2,3214.0,2.23544142]
[1764819006431,1.9732,3214.0,3213.9,12.20836]
[1764819015134,1.9732,3214.0,3213.9,9.00056]
[1764819017934,1.9732,3214.0,3213.9,0.15556]
[1764819021833,1.2006,3214.0,3213.9,0.15556]
[1764819022042,5.181,3214.5,3214.2,0.15554]
[1764819022339,5.181,3214.5,3214.4,1.38400245]
[1764819023538,1.5283,3214.3,3214.2,0.15554]
[1764819024036,3.6527,3214.5,3214.2,0.15554]
[1764819024239,1.2006,3214.5,3214.4,1.38400245]
[1764819024732,0.4449,3214.5,3214.4,1.38400245]
[1764819025338,1.2006,3214.5,3214.4,1.38400245]
[1764819025536,1.9732,3214.5,3214.4,1.38400245]
[1764819026138,1.9732,3214.5,3214.4,1.53953245]
[1764819027035,1.9732,3214.5,3214.4,0.15553]
[1764819027837,1.5283,3214.3,3214.2,5.44324142]
[1764819028039,1.5283,3214.3,3214.2,3.2078]
[1764819033737,42.3283,3214.3,3214.2,3.2078]
[1764819033936,1.9618,3214.0,3213.9,2.39100142]
[1764819034147,1.9618,3214.0,3213.9,0.15556]
[1764819034652,1.4885,3213.7,3213.6,5.862]
[1764819037642,1.4885,3213.6,3213.5,0.00369784]
[1764819039451,4.6963,3213.6,3213.5,0.00369784]
[1764819039750,1.4224,3212.7,3212.6,2.23544142]
[1764819039945,1.8681,3212.5,3212.4,17.75987142]
[1764819040138,1.1674,3212.5,3212.4,17.75987142]
[1764819040745,1.17032414,3212.5,3212.4,17.76232986]
[1764819041345,1.17032414,3212.5,3212.4,15.52688844]
[1764819043255,1.87102414,3212.5,3212.4,15.52688844]
[1764819043452,0.44862414,3212.5,3212.4,15.52688844]
[1764819044150,0.00466809,3212.8,3212.7,0.15561]
[1764819044359,0.00466809,3212.8,3212.7,1.53961245]
[1764819044752,0.72636809,3212.8,3212.7,1.53961245]
[1764819045247,0.00835541,3212.8,3212.7,1.53961245]
[1764819045750,1.43075541,3212.8,3212.7,1.53961245]
[1764819045951,1.43075541,3212.8,3212.7,6.34061]
[1764819047158,0.00835541,3212.8,3212.7,7.72461245]
[1764819048856,1.43075541,3212.8,3212.7,7.72461245]
[1764819049064,1.43075541,3212.8,3212.7,5.80518843]
[1764819049354,1.43075541,3212.8,3212.0,2.78833022]
[1764819049355,0.4457,3212.0,3211.9,4.74745245]
[1764819049556,0.4457,3212.5,3211.9,4.74745245]
[1764819049557,0.4457,3212.5,3211.9,4.59180245]
[1764819049757,0.4457,3212.5,3212.4,4.59180245]
[1764819050255,1.1674,3212.5,3212.4,4.59552997]
[1764819050560,0.00835541,3212.8,3212.4,4.59552997]
[1764819050762,0.00835541,3212.8,3212.7,1.38400245]